[Event "Late-Titled-Tuesday-Blitz-July-09-2024"]
[Site "Chess.com"]
[Date "2024.07.09"]
[Round "11"]
[White "Oleksandr_Bortnyk"]
[Black "Seochesspie"]
[Result "1/2-1/2"]
[WhiteElo "3055"]
[BlackElo "2951"]
[TimeControl "180+1"]
[EndTime "16:07:37 PDT"]
[Termination "Game drawn by repetition"]

1. d4 {[%clk 0:03:00.9]} 1... d5 {[%clk 0:02:59.4]} 2. Nc3 {[%clk 0:03:00.3]}
2... Nf6 {[%clk 0:02:59.3]} 3. Bf4 {[%clk 0:03:00.5]} 3... a6 {[%clk 0:02:57.3]}
4. e3 {[%clk 0:03:00.8]} 4... e6 {[%clk 0:02:55.7]} 5. a3 {[%clk 0:03:01]} 5...
c5 {[%clk 0:02:53.1]} 6. Nf3 {[%clk 0:02:59]} 6... Nc6 {[%clk 0:02:52.6]} 7.
dxc5 {[%clk 0:02:58.8]} 7... Bxc5 {[%clk 0:02:52.2]} 8. Bd3 {[%clk 0:02:59.5]}
8... Qe7 {[%clk 0:02:44.3]} 9. e4 {[%clk 0:02:58.4]} 9... d4 {[%clk 0:02:39.6]}
10. Ne2 {[%clk 0:02:57.6]} 10... e5 {[%clk 0:02:39.1]} 11. Bd2 {[%clk
0:02:57.8]} 11... O-O {[%clk 0:02:36.8]} 12. O-O {[%clk 0:02:58.1]} 12... Be6
{[%clk 0:02:33.2]} 13. Ng3 {[%clk 0:02:55.5]} 13... Nd7 {[%clk 0:02:33.2]} 14.
Ng5 {[%clk 0:02:52.9]} 14... b5 {[%clk 0:02:18.5]} 15. b4 {[%clk 0:02:48.6]}
15... Bd6 {[%clk 0:02:16.2]} 16. Nf5 {[%clk 0:02:32.6]} 16... Bxf5 {[%clk
0:02:15.6]} 17. exf5 {[%clk 0:02:33.5]} 17... Nf6 {[%clk 0:02:16.4]} 18. Qf3
{[%clk 0:02:29.5]} 18... Rac8 {[%clk 0:02:12]} 19. Rae1 {[%clk 0:02:28.3]} 19...
Nb8 {[%clk 0:02:06.8]} 20. Ne4 {[%clk 0:02:24.4]} 20... Nxe4 {[%clk 0:02:00.4]}
21. Rxe4 {[%clk 0:02:25.3]} 21... Nd7 {[%clk 0:01:56.8]} 22. Rfe1 {[%clk
0:02:17.3]} 22... Qd8 {[%clk 0:01:55.5]} 23. Rg4 {[%clk 0:01:57.7]} 23... Nf6
{[%clk 0:01:49.7]} 24. Bh6 {[%clk 0:01:57.6]} 24... Nxg4 {[%clk 0:01:46]} 25.
Qxg4 {[%clk 0:01:58.5]} 25... g6 {[%clk 0:01:46.2]} 26. fxg6 {[%clk 0:01:56.8]}
26... fxg6 {[%clk 0:01:45]} 27. Bxg6 {[%clk 0:01:52.8]} 27... Qf6 {[%clk
0:01:38.5]} 28. Bd3+ {[%clk 0:01:21]} 28... Kh8 {[%clk 0:01:36.6]} 29. Bxf8
{[%clk 0:01:21.1]} 29... Rxf8 {[%clk 0:01:37.2]} 30. f3 {[%clk 0:01:16.7]} 30...
Rg8 {[%clk 0:01:27.5]} 31. Qh3 {[%clk 0:01:10.3]} 31... Qg7 {[%clk 0:01:23.5]}
32. Re4 {[%clk 0:01:07.3]} 32... Qg5 {[%clk 0:01:16.2]} 33. f4 {[%clk
0:00:42.4]} 33... Qg4 {[%clk 0:01:07]} 34. Qxg4 {[%clk 0:00:29.8]} 34... Rxg4
{[%clk 0:01:07]} 35. fxe5 {[%clk 0:00:10.2]} 35... Rxe4 {[%clk 0:01:05.7]} 36.
Bxe4 {[%clk 0:00:11.1]} 36... Bxe5 {[%clk 0:01:06.4]} 37. Bb7 {[%clk 0:00:12]}
37... Bf4 {[%clk 0:01:02.6]} 38. Bxa6 {[%clk 0:00:04.8]} 38... Bc1 {[%clk
0:01:02.8]} 39. Bxb5 {[%clk 0:00:03.7]} 39... Bxa3 {[%clk 0:01:02.6]} 40. Kf2
{[%clk 0:00:04.6]} 40... Bxb4 {[%clk 0:01:02.8]} 41. Kf3 {[%clk 0:00:05.3]}
41... Kg7 {[%clk 0:01:02.6]} 42. Ke4 {[%clk 0:00:05.5]} 42... Bc3 {[%clk
0:00:59.1]} 43. Kf5 {[%clk 0:00:05.6]} 43... h6 {[%clk 0:00:59.3]} 44. Bd3
{[%clk 0:00:05.6]} 44... Bb2 {[%clk 0:00:59.5]} 45. Ke6 {[%clk 0:00:03.7]} 45...
Bc3 {[%clk 0:00:59.6]} 46. h3 {[%clk 0:00:04.4]} 46... Bb2 {[%clk 0:00:59.6]}
47. Kd5 {[%clk 0:00:05.3]} 47... Bc3 {[%clk 0:00:59.8]} 48. Ke4 {[%clk
0:00:06.2]} 48... Kf6 {[%clk 0:01:00]} 49. Be2 {[%clk 0:00:07.1]} 49... Bb2
{[%clk 0:00:59.7]} 50. Bf3 {[%clk 0:00:08]} 50... Bc3 {[%clk 0:01:00]} 51. Kd3
{[%clk 0:00:08.9]} 51... Bb2 {[%clk 0:01:00.1]} 52. Bc6 {[%clk 0:00:07.4]} 52...
Bc3 {[%clk 0:01:00.1]} 53. Ba8 {[%clk 0:00:08.3]} 53... Kg5 {[%clk 0:01:00.1]}
54. Kc4 {[%clk 0:00:09.2]} 54... Kf6 {[%clk 0:01:00]} 55. Kb3 {[%clk 0:00:09.3]}
55... Kg5 {[%clk 0:01:00.1]} 56. Bf3 {[%clk 0:00:08.6]} 56... Kf6 {[%clk
0:01:00.6]} 57. Ka4 {[%clk 0:00:07.2]} 57... Kg5 {[%clk 0:01:01.5]} 58. Bd5
{[%clk 0:00:06.7]} 58... Kf6 {[%clk 0:01:02.4]} 59. Kb5 {[%clk 0:00:07]} 59...
Kg5 {[%clk 0:01:03.1]} 60. Kc5 {[%clk 0:00:07.6]} 60... Kf6 {[%clk 0:01:04]} 61.
Kd6 {[%clk 0:00:08.3]} 61... Kg7 {[%clk 0:01:03.9]} 62. Ke6 {[%clk 0:00:08.8]}
62... Bb2 {[%clk 0:01:04.1]} 63. Kf5 {[%clk 0:00:09.4]} 63... Bc3 {[%clk
0:01:04.3]} 64. g3 {[%clk 0:00:09.2]} 64... Bb2 {[%clk 0:01:04.3]} 65. Bf3
{[%clk 0:00:09.5]} 65... Bc3 {[%clk 0:01:04.5]} 66. Ke4 {[%clk 0:00:10.2]} 66...
Kf6 {[%clk 0:01:04.1]} 67. Kd3 {[%clk 0:00:09.5]} 67... Bb2 {[%clk 0:01:04.1]}
68. Bd1 {[%clk 0:00:08.1]} 68... Bc3 {[%clk 0:01:03.2]} 69. Ke4 {[%clk
0:00:08.6]} 69... Bb2 {[%clk 0:01:03.1]} 70. Be2 {[%clk 0:00:04.3]} 70... Bc3
{[%clk 0:01:03.2]} 71. Kf4 {[%clk 0:00:05.1]} 71... Bb2 {[%clk 0:01:02.8]} 72.
Bd3 {[%clk 0:00:06]} 72... Bc3 {[%clk 0:01:02.9]} 73. Kg4 {[%clk 0:00:06.9]}
73... Kg7 {[%clk 0:01:03]} 74. h4 {[%clk 0:00:06]} 74... Be1 {[%clk 0:01:01.9]}
75. Kf5 {[%clk 0:00:06.9]} 75... Bxg3 {[%clk 0:01:01]} 76. h5 {[%clk 0:00:03.1]}
76... Be1 {[%clk 0:01:00.6]} 77. Ke4 {[%clk 0:00:04]} 77... Bc3 {[%clk
0:01:00.7]} 78. Be2 {[%clk 0:00:04.4]} 78... Kf6 {[%clk 0:01:00.9]} 79. Bb5
{[%clk 0:00:04.8]} 79... Kg5 {[%clk 0:01:01]} 80. Be8 {[%clk 0:00:05.1]} 80...
Kf6 {[%clk 0:01:00.9]} 81. Bg6 {[%clk 0:00:05.5]} 81... Kg7 {[%clk 0:01:01.2]}
82. Kd3 {[%clk 0:00:06.4]} 82... Bb2 {[%clk 0:01:01.2]} 83. Ke4 {[%clk
0:00:07.3]} 83... Bc3 {[%clk 0:01:01.5]} 84. Kd5 {[%clk 0:00:08.2]} 84... Kf6
{[%clk 0:01:01.7]} 85. Kc4 {[%clk 0:00:09.1]} 85... Bb2 {[%clk 0:01:01.7]} 86.
Kb4 {[%clk 0:00:09.2]} 86... Bc3+ {[%clk 0:01:01.9]} 87. Kb3 {[%clk 0:00:09.9]}
87... Kg7 {[%clk 0:01:02.3]} 88. Bd3 {[%clk 0:00:10.1]} 88... Kf6 {[%clk
0:01:02.7]} 89. Be2 {[%clk 0:00:10.8]} 89... Kg7 {[%clk 0:01:02.8]} 90. Kc4
{[%clk 0:00:11.4]} 90... Kf6 {[%clk 0:01:03.1]} 91. Kd3 {[%clk 0:00:12.3]} 91...
Kg7 {[%clk 0:01:03.2]} 92. Bd1 {[%clk 0:00:13.2]} 92... Bb2 {[%clk 0:01:03.1]}
93. Ke4 {[%clk 0:00:14.1]} 93... Bc3 {[%clk 0:01:03.4]} 94. Kf5 {[%clk 0:00:15]}
94... Bb2 {[%clk 0:01:03]} 95. Ke6 {[%clk 0:00:15.9]} 95... Bc3 {[%clk
0:01:03.1]} 96. Kd5 {[%clk 0:00:16.8]} 96... Bb2 {[%clk 0:01:03.3]} 97. Kc4
{[%clk 0:00:17.7]} 97... Bc3 {[%clk 0:01:02.9]} 98. Kd3 {[%clk 0:00:18.6]} 98...
Kf6 {[%clk 0:01:03.6]} 99. Bf3 {[%clk 0:00:19]} 99... Kg5 {[%clk 0:01:04.1]}
100. Be2 {[%clk 0:00:19.4]} 100... Kf6 {[%clk 0:01:05]} 101. Ke4 {[%clk
0:00:20]} 101... Kg5 {[%clk 0:01:04.9]} 102. Bd1 {[%clk 0:00:20.5]} 102... Kf6
{[%clk 0:01:05]} 103. Kf4 {[%clk 0:00:21.4]} 103... Bd2+ {[%clk 0:01:04.9]} 104.
Kg4 {[%clk 0:00:21.4]} 104... Bc3 {[%clk 0:01:05.8]} 105. Kf3 {[%clk 0:00:21.8]}
105... Kg5 {[%clk 0:01:05.7]} 106. Kg3 {[%clk 0:00:21.5]} 106... Be1+ {[%clk
0:01:05.1]} 107. Kg2 {[%clk 0:00:20.2]} 107... Bc3 {[%clk 0:01:06]} 108. Be2
{[%clk 0:00:20]} 108... Kf4 {[%clk 0:01:06]} 109. Kf2 {[%clk 0:00:20.3]} 109...
Bd2 {[%clk 0:01:05.4]} 110. Bd3 {[%clk 0:00:20.3]} 110... Bc3 {[%clk 0:01:05.3]}
111. Bg6 {[%clk 0:00:21.2]} 111... Bb2 {[%clk 0:01:05]} 112. Ke2 {[%clk
0:00:22.1]} 112... Bc3 {[%clk 0:01:05.3]} 113. Kd1 {[%clk 0:00:23]} 113... Ke5
{[%clk 0:01:04.2]} 114. Kc1 {[%clk 0:00:23.1]} 114... Kf6 {[%clk 0:01:04.5]}
115. Kb1 {[%clk 0:00:23.5]} 115... Kg7 {[%clk 0:01:05]} 116. Ka2 {[%clk
0:00:24.3]} 116... Kf6 {[%clk 0:01:05]} 117. Kb3 {[%clk 0:00:25.2]} 117... Kg7
{[%clk 0:01:04.8]} 118. Kc4 {[%clk 0:00:25.8]} 118... Kf6 {[%clk 0:01:04.8]}
119. Kd5 {[%clk 0:00:26.7]} 119... Kg7 {[%clk 0:01:04]} 120. Ke6 {[%clk
0:00:27.6]} 120... Bb2 {[%clk 0:01:03.9]} 121. c4 {[%clk 0:00:28.3]} 121... dxc3
{[%clk 0:01:03.8]} 122. Bc2 {[%clk 0:00:28.8]} 122... Bc1 {[%clk 0:01:03.6]}
123. Kf5 {[%clk 0:00:28.9]} 123... Bg5 {[%clk 0:01:04.5]} 124. Ke4 {[%clk
0:00:29.5]} 124... Bd2 {[%clk 0:01:03.5]} 125. Kd3 {[%clk 0:00:29.6]} 125... Kf6
{[%clk 0:01:03.5]} 126. Ba4 {[%clk 0:00:30.1]} 126... Kg5 {[%clk 0:01:04]} 127.
Be8 {[%clk 0:00:30.4]} 127... Kg4 {[%clk 0:01:03.5]} 128. Kc2 {[%clk 0:00:31.3]}
128... Kf3 {[%clk 0:01:03.7]} 129. Bg6 {[%clk 0:00:32.2]} 129... Ke3 {[%clk
0:01:04.3]} 130. Bf7 {[%clk 0:00:33.1]} 130... Kd4 {[%clk 0:01:04.7]} 131. Be8
{[%clk 0:00:34]} 131... Ke5 {[%clk 0:01:05.6]} 132. Bg6 {[%clk 0:00:34.3]}
132... Kf6 {[%clk 0:01:06.5]} 133. Kd3 {[%clk 0:00:34.8]} 133... Ke7 {[%clk
0:01:07.4]} 134. Kc2 {[%clk 0:00:35.7]} 134... Kd6 {[%clk 0:01:07.6]} 135. Kd1
{[%clk 0:00:36.6]} 135... Ke5 {[%clk 0:01:08]} 136. Kc2 {[%clk 0:00:37.5]}
136... Kd4 {[%clk 0:01:08.5]} 137. Kd1 {[%clk 0:00:38.4]} 137... Kc4 {[%clk
0:01:09]} 138. Kc2 {[%clk 0:00:39.3]} 138... Kb4 {[%clk 0:01:09.3]} 139. Bf7
{[%clk 0:00:39.8]} 139... Kc5 {[%clk 0:01:10.2]} 140. Be8 {[%clk 0:00:40.5]}
140... Kd6 {[%clk 0:01:10.5]} 141. Bg6 {[%clk 0:00:41.4]} 141... Ke7 {[%clk
0:01:11.1]} 142. Kd1 {[%clk 0:00:42.3]} 142... Kf6 {[%clk 0:01:11.8]} 143. Kc2
{[%clk 0:00:43.2]} 143... Ke5 {[%clk 0:01:12.6]} 144. Kd1 {[%clk 0:00:44.1]}
144... Kd6 {[%clk 0:01:13.3]} 145. Kc2 {[%clk 0:00:45]} 145... Ke7 {[%clk
0:01:14.1]} 146. Kd1 {[%clk 0:00:45.9]} 146... Kd8 {[%clk 0:01:14.8]} 147. Kc2
{[%clk 0:00:46.8]} 147... Kc7 {[%clk 0:01:15.6]} 148. Kd1 {[%clk 0:00:47.7]}
148... Kb8 {[%clk 0:01:16.3]} 149. Kc2 {[%clk 0:00:48.6]} 149... Kc7 {[%clk
0:01:16.9]} 150. Kd1 {[%clk 0:00:49.5]} 150... Kb6 {[%clk 0:01:17.5]} 151. Kc2
{[%clk 0:00:50.4]} 151... Ka5 {[%clk 0:01:18.2]} 152. Kd1 {[%clk 0:00:51.3]}
152... Kb4 {[%clk 0:01:19]} 153. Kc2 {[%clk 0:00:52.2]} 153... Ka3 {[%clk
0:01:19.8]} 154. Kd1 {[%clk 0:00:53.1]} 154... Kb2 {[%clk 0:01:20.2]} 155. Bf5
{[%clk 0:00:53.4]} 155... Kb3 {[%clk 0:01:20.4]} 156. Bc2+ {[%clk 0:00:54.3]}
156... Kc4 {[%clk 0:01:20.6]} 157. Bg6 {[%clk 0:00:55.2]} 157... Kd4 {[%clk
0:01:21.3]} 158. Bc2 {[%clk 0:00:56.1]} 158... Ke5 {[%clk 0:01:22.2]} 159. Bg6
{[%clk 0:00:57]} 159... Kf6 {[%clk 0:01:22.7]} 160. Kc2 {[%clk 0:00:57.9]}
160... Kg7 {[%clk 0:01:23.4]} 161. Kd1 {[%clk 0:00:58.8]} 161... Kf8 {[%clk
0:01:24.2]} 162. Kc2 {[%clk 0:00:59.7]} 162... Ke7 {[%clk 0:01:25]} 1/2-1/2

[Event "Late-Titled-Tuesday-Blitz-July-09-2024"]
[Site "Chess.com"]
[Date "2024.07.09"]
[Round "11"]
[White "GoltsevDmitry2000"]
[Black "jbking07"]
[Result "1-0"]
[WhiteElo "2787"]
[BlackElo "2491"]
[TimeControl "180+1"]
[EndTime "16:08:12 PDT"]
[Termination "GoltsevDmitry2000 won by resignation"]

1. e4 {[%clk 0:03:00]} 1... c5 {[%clk 0:02:59.6]} 2. Nf3 {[%clk 0:03:00.3]} 2...
g6 {[%clk 0:02:58.4]} 3. d4 {[%clk 0:03:00.6]} 3... cxd4 {[%clk 0:02:58.5]} 4.
Qxd4 {[%clk 0:03:01.5]} 4... Nf6 {[%clk 0:02:57.9]} 5. Nc3 {[%clk 0:03:01.6]}
5... Nc6 {[%clk 0:02:58.2]} 6. Qa4 {[%clk 0:03:02.2]} 6... d6 {[%clk 0:02:45.4]}
7. e5 {[%clk 0:02:58.1]} 7... dxe5 {[%clk 0:02:44.9]} 8. Nxe5 {[%clk 0:02:57]}
8... Bd7 {[%clk 0:02:44.9]} 9. Nxd7 {[%clk 0:02:56.4]} 9... Nxd7 {[%clk
0:02:44.4]} 10. Bb5 {[%clk 0:02:57.3]} 10... Bg7 {[%clk 0:02:44]} 11. O-O {[%clk
0:02:56.9]} 11... O-O {[%clk 0:02:43.6]} 12. Bg5 {[%clk 0:02:56.5]} 12... Nb6
{[%clk 0:02:38.6]} 13. Qh4 {[%clk 0:02:55.7]} 13... f6 {[%clk 0:02:36.4]} 14.
Be3 {[%clk 0:02:53.5]} 14... Qc7 {[%clk 0:02:29.5]} 15. Rfe1 {[%clk 0:02:49.9]}
15... Rad8 {[%clk 0:02:28.5]} 16. Rad1 {[%clk 0:02:45.2]} 16... e5 {[%clk
0:02:21.1]} 17. Bc5 {[%clk 0:02:38]} 17... Rfe8 {[%clk 0:02:16.3]} 18. Qg4
{[%clk 0:02:04.6]} 18... Kh8 {[%clk 0:01:49]} 19. Rxd8 {[%clk 0:02:01.3]} 19...
Rxd8 {[%clk 0:01:47.9]} 20. Qe6 {[%clk 0:01:47.4]} 20... f5 {[%clk 0:01:20.8]}
21. Rd1 {[%clk 0:01:05.3]} 21... Rxd1+ {[%clk 0:01:18.2]} 22. Nxd1 {[%clk
0:01:05.3]} 22... Qd7 {[%clk 0:01:17.7]} 23. Qxd7 {[%clk 0:01:00.5]} 23... Nxd7
{[%clk 0:01:18.6]} 24. Bxc6 {[%clk 0:00:58.1]} 24... Nxc5 {[%clk 0:01:18.4]} 25.
Bd5 {[%clk 0:00:57.9]} 25... a5 {[%clk 0:01:16.5]} 26. Ne3 {[%clk 0:00:52.9]}
26... a4 {[%clk 0:01:06.3]} 27. Nc4 {[%clk 0:00:44.4]} 27... e4 {[%clk
0:00:58.9]} 28. c3 {[%clk 0:00:40.1]} 28... b5 {[%clk 0:00:44.4]} 29. Nd6 {[%clk
0:00:39.8]} 29... Nd3 {[%clk 0:00:30.7]} 30. Nxb5 {[%clk 0:00:34.7]} 30... Nxb2
{[%clk 0:00:30.6]} 31. c4 {[%clk 0:00:35.3]} 31... Nd3 {[%clk 0:00:26.3]} 32.
Nd6 {[%clk 0:00:34.4]} 32... Bd4 {[%clk 0:00:24.8]} 33. Kf1 {[%clk 0:00:12.1]}
33... Nxf2 {[%clk 0:00:24.5]} 34. Bc6 {[%clk 0:00:08.9]} 34... Ng4 {[%clk
0:00:23.7]} 35. h3 {[%clk 0:00:06.2]} 35... Ne5 {[%clk 0:00:24.1]} 36. Bd5
{[%clk 0:00:04.8]} 36... Bc5 {[%clk 0:00:24.2]} 37. Nb7 {[%clk 0:00:03.9]} 37...
Bd4 {[%clk 0:00:22.3]} 38. c5 {[%clk 0:00:03.1]} 38... Kg7 {[%clk 0:00:21.1]}
39. c6 {[%clk 0:00:03.4]} 39... Bb6 {[%clk 0:00:21.1]} 40. Nc5 {[%clk
0:00:03.6]} 40... Kf6 {[%clk 0:00:20.1]} 41. Nxa4 {[%clk 0:00:04]} 41... Bc7
{[%clk 0:00:19.8]} 42. Nc5 {[%clk 0:00:04.5]} 42... Ke7 {[%clk 0:00:20.4]} 43.
Nb7 {[%clk 0:00:04.7]} 43... Nd3 {[%clk 0:00:18]} 44. a3 {[%clk 0:00:04.4]}
44... Nf4 {[%clk 0:00:17.7]} 45. Bg8 {[%clk 0:00:04.4]} 45... h6 {[%clk
0:00:17.4]} 46. a4 {[%clk 0:00:04.8]} 46... Nd3 {[%clk 0:00:15.1]} 47. a5 {[%clk
0:00:05.1]} 47... Nb4 {[%clk 0:00:15.4]} 48. Bc4 {[%clk 0:00:03.2]} 48... Nxc6
{[%clk 0:00:15.4]} 49. a6 {[%clk 0:00:03.8]} 49... Bb6 {[%clk 0:00:15.4]} 50.
Bb5 {[%clk 0:00:03.7]} 50... Nd4 {[%clk 0:00:15.4]} 51. Bc4 {[%clk 0:00:03.8]}
51... f4 {[%clk 0:00:14.3]} 52. Na5 {[%clk 0:00:04]} 52... Kd6 {[%clk
0:00:12.3]} 53. Nb3 {[%clk 0:00:03.7]} 53... Nxb3 {[%clk 0:00:12.4]} 54. Bxb3
{[%clk 0:00:04.6]} 54... Ke5 {[%clk 0:00:12.8]} 55. Ke2 {[%clk 0:00:04.8]} 55...
Kf5 {[%clk 0:00:12.8]} 56. Bf7 {[%clk 0:00:05.2]} 56... h5 {[%clk 0:00:12.5]}
57. Be8 {[%clk 0:00:05.5]} 57... g5 {[%clk 0:00:12.5]} 58. Bxh5 {[%clk
0:00:05.7]} 58... Ke5 {[%clk 0:00:12.1]} 59. Bg6 {[%clk 0:00:06.2]} 59... Kd4
{[%clk 0:00:12.2]} 60. Be8 {[%clk 0:00:06.6]} 60... Kc5 {[%clk 0:00:12]} 61. Bd7
{[%clk 0:00:06.5]} 61... Ba7 {[%clk 0:00:12.2]} 62. Bf5 {[%clk 0:00:06.8]} 62...
Kd4 {[%clk 0:00:12.5]} 63. Bc8 {[%clk 0:00:06.1]} 63... Ke5 {[%clk 0:00:12.9]}
64. Bb7 {[%clk 0:00:07]} 64... Kd4 {[%clk 0:00:13.1]} 65. Bc6 {[%clk 0:00:07.2]}
65... Ke5 {[%clk 0:00:13.4]} 66. Kd1 {[%clk 0:00:07.4]} 66... Kd4 {[%clk
0:00:12.8]} 67. Ke1 {[%clk 0:00:07.8]} 67... Ke3 {[%clk 0:00:13.1]} 68. Kf1
{[%clk 0:00:07.9]} 68... f3 {[%clk 0:00:10.1]} 69. g3 {[%clk 0:00:05.2]} 69...
f2 {[%clk 0:00:09.2]} 70. h4 {[%clk 0:00:04.6]} 70... gxh4 {[%clk 0:00:09]} 71.
gxh4 {[%clk 0:00:05.5]} 71... Kf4 {[%clk 0:00:09.5]} 72. h5 {[%clk 0:00:05.7]}
72... Kg5 {[%clk 0:00:09.4]} 73. Be8 {[%clk 0:00:06.1]} 73... e3 {[%clk
0:00:08.1]} 74. Ke2 {[%clk 0:00:06.1]} 74... Kh6 {[%clk 0:00:06.7]} 75. Bg6
{[%clk 0:00:06.4]} 75... Kg5 {[%clk 0:00:06.9]} 76. Kf1 {[%clk 0:00:06.6]} 76...
Bd4 {[%clk 0:00:06.2]} 77. Be8 {[%clk 0:00:06.5]} 77... Kh6 {[%clk 0:00:06.2]}
78. Bf7 {[%clk 0:00:06.3]} 78... Kg7 {[%clk 0:00:06.6]} 79. Bg6 {[%clk
0:00:06.6]} 79... Kf6 {[%clk 0:00:06.3]} 80. Ke2 {[%clk 0:00:06.9]} 80... Kg5
{[%clk 0:00:06.8]} 81. Be8 {[%clk 0:00:07.3]} 81... Kf4 {[%clk 0:00:07.3]} 82.
h6 {[%clk 0:00:06.9]} 82... Kg3 {[%clk 0:00:07.8]} 83. Bc6 {[%clk 0:00:04.5]}
83... Kh2 {[%clk 0:00:07.8]} 84. Bb5 {[%clk 0:00:04.2]} 84... Kg1 {[%clk
0:00:08]} 85. Kf3 {[%clk 0:00:04.7]} 85... f1=Q+ {[%clk 0:00:07.5]} 86. Bxf1
{[%clk 0:00:05.1]} 86... Kxf1 {[%clk 0:00:08.4]} 87. h7 {[%clk 0:00:06]} 87...
e2 {[%clk 0:00:09]} 88. a7 {[%clk 0:00:06.6]} 88... e1=Q {[%clk 0:00:09.2]} 89.
a8=Q {[%clk 0:00:07]} 89... Qe3+ {[%clk 0:00:08.4]} 90. Kg4 {[%clk 0:00:07.2]}
90... Qe6+ {[%clk 0:00:08.5]} 91. Kf4 {[%clk 0:00:05.1]} 91... Qe5+ {[%clk
0:00:07]} 92. Kg4 {[%clk 0:00:05.6]} 92... Qg7+ {[%clk 0:00:06]} 93. Kf4 {[%clk
0:00:04.8]} 93... Qh6+ {[%clk 0:00:05.5]} 94. Kg4 {[%clk 0:00:02.9]} 94... Qg6+
{[%clk 0:00:05.1]} 95. Kf4 {[%clk 0:00:03.4]} 95... Qxh7 {[%clk 0:00:04.8]} 96.
Qf3+ {[%clk 0:00:03.2]} 96... Bf2 {[%clk 0:00:05.1]} 97. Qd1+ {[%clk 0:00:03]}
97... Kg2 {[%clk 0:00:05.4]} 98. Qd5+ {[%clk 0:00:03.5]} 98... Kg1 {[%clk
0:00:05]} 99. Qd1+ {[%clk 0:00:03.5]} 99... Kh2 {[%clk 0:00:05]} 100. Qd5 {[%clk
0:00:03.2]} 100... Qh4+ {[%clk 0:00:05.4]} 101. Kf5 {[%clk 0:00:03.2]} 101...
Qh3+ {[%clk 0:00:04.6]} 102. Kf6 {[%clk 0:00:03.2]} 102... Bh4+ {[%clk
0:00:03.7]} 103. Ke5 {[%clk 0:00:03.7]} 103... Qg3+ {[%clk 0:00:04.6]} 104. Ke6
{[%clk 0:00:03.8]} 104... Qf2 {[%clk 0:00:05.2]} 105. Kd7 {[%clk 0:00:04.1]}
105... Bg3 {[%clk 0:00:06.1]} 106. Qe6 {[%clk 0:00:03.6]} 106... Kg1 {[%clk
0:00:07]} 107. Ke8 {[%clk 0:00:03.8]} 107... Qd2 {[%clk 0:00:07.3]} 108. Qd7
{[%clk 0:00:04]} 108... Bf2 {[%clk 0:00:07.8]} 109. Qxd2 {[%clk 0:00:04.3]} 1-0